fUST/lending_fUST_20250707
["ID","MTS","AMOUNT","RATE_DAILY","PERIOD"]
[370007455,1751827839413,-460.0,0.00016967,2]
[370007456,1751827839426,-1776.55,0.00016967,2]
[370007457,1751827839437,-460.0,0.00016967,2]
[370007458,1751827839448,-460.0,0.00016967,2]
[370007459,1751827839461,-1777.26,0.00016967,2]
[370007460,1751827839473,-460.0,0.00016967,2]
[370007461,1751827839485,-460.0,0.00016967,2]
[370007462,1751827839496,-460.0,0.00016967,2]
[370007463,1751827839508,-960.36,0.00016967,2]
[370007464,1751827839520,-460.0,0.00016967,2]
[370007465,1751827839530,-460.0,0.00016967,2]
[370007466,1751827839540,-460.0,0.00016967,2]
[370007467,1751827839551,-460.0,0.00016967,2]
[370007468,1751827839561,-460.0,0.00016967,2]
[370007469,1751827839571,-460.0,0.00016967,2]
[370007470,1751827839582,-460.0,0.00016967,2]
[370007471,1751827839593,-460.0,0.00016967,2]
[370007472,1751827839604,-482.66,0.00016967,2]
[370007473,1751827839617,-460.0,0.00016967,2]
[370007474,1751827839629,-1056.27,0.00016967,2]
[370007475,1751827839641,-460.0,0.00016967,2]
[370007476,1751827839653,-460.0,0.00016967,2]
[370007477,1751827839662,-460.0,0.00016967,2]
[370007478,1751827839672,-950.61,0.00016967,2]
[370007479,1751827839684,-460.0,0.00016967,2]
[370007480,1751827839695,-460.0,0.00016967,2]
[370007481,1751827839705,-230.6860728,0.00016968,2]
[370007482,1751827839719,-431.40839141,0.00016968,2]
[370007483,1751827839730,-460.0,0.00016968,2]
[370007484,1751827839741,-460.0,0.00016968,2]
[370007485,1751827839751,-460.0,0.00016968,2]
[370007486,1751827839761,-460.0,0.00016968,2]
[370007487,1751827839771,-460.0,0.00016968,2]
[370007488,1751827839781,-460.0,0.00016968,2]
[370007489,1751827839792,-2864.36,0.00016968,2]
[370007490,1751827839802,-512.47,0.00016968,2]
[370007491,1751827839812,-917.95,0.00016968,2]
[370007492,1751827839822,-460.0,0.00016968,2]
[370007493,1751827839833,-867.11,0.00016968,2]
[370007494,1751827839843,-460.0,0.00016968,2]
[370007495,1751827839855,-1049.37,0.00016968,2]
[370007496,1751827839866,-818.97,0.00016968,2]
[370007497,1751827839877,-148373.56298872,0.00016969,2]
[370007498,1751827839887,-460.0,0.00017067,2]
[370007499,1751827839897,-460.0,0.00017067,2]
[370007500,1751827839907,-431.98487147,0.00017067,2]
[370007501,1751827839918,-460.0,0.00017067,2]
[370007502,1751827839928,-460.0,0.00017067,2]
[370007503,1751827839938,-460.0,0.00017067,2]
[370007504,1751827839948,-460.0,0.00017067,2]
[370007505,1751827839958,-460.0,0.00017067,2]
[370007507,1751827839969,-202.39477265,0.00017067,2]
[370007508,1751827839979,-590.88,0.00017067,2]
[370007509,1751827839991,-535.7,0.00017067,2]
[370007510,1751827840001,-460.0,0.00017067,2]
[370007511,1751827840012,-460.0,0.00017067,2]
[370007512,1751827840022,-460.0,0.00017067,2]
[370007513,1751827840033,-460.0,0.00017067,2]
[370007514,1751827840043,-460.0,0.00017067,2]
[370007515,1751827840054,-1553.55,0.00017067,2]
[370007516,1751827840064,-460.0,0.00017067,2]
[370007517,1751827840074,-460.0,0.00017067,2]
[370007518,1751827840085,-173.27374186,0.00017067,2]
[370007519,1751827840095,-460.0,0.00017067,2]
[370007520,1751827840105,-460.0,0.00017067,2]
[370007521,1751827840116,-1082.26,0.00017067,2]
[370007522,1751827840126,-460.0,0.00017067,2]
[370007523,1751827840136,-460.0,0.00017067,2]
[370007524,1751827840148,-2807.19,0.00017067,2]
[370007525,1751827840159,-460.0,0.00017067,2]
[370007526,1751827840169,-819.71,0.00017067,2]
[370007527,1751827840179,-208.21472286,0.00017067,2]
[370007528,1751827840191,-387.85280169,0.00017074,2]
[370007529,1751827840201,-460.0,0.00017074,2]
[370007530,1751827840212,-460.0,0.00017074,2]
[370007531,1751827840224,-210.0684958,0.00017074,2]
[370007532,1751827840236,-460.0,0.00017074,2]
[370007533,1751827840246,-308.77401542,0.00017074,2]
[370007534,1751827840256,-900.47021867,0.00017141,2]
[370007535,1751827840274,-460.0,0.00017239,2]
[370007536,1751827840284,-460.0,0.00017239,2]
[370007537,1751827840295,-1289.88,0.00017239,2]
[370007538,1751827840305,-460.0,0.00017239,2]
[370007539,1751827840316,-487.04,0.00017239,2]
[370007540,1751827840327,-460.0,0.00017241,2]
[370007541,1751827840338,-460.0,0.00017241,2]
[370007542,1751827840348,-460.0,0.00017241,2]
[370007543,1751827840358,-460.0,0.00017241,2]
[370007544,1751827840368,-460.0,0.00017241,2]
[370007545,1751827840379,-592.9,0.00017241,2]
[370007546,1751827840389,-460.0,0.00017241,2]
[370007547,1751827840399,-460.0,0.00017241,2]
[370007548,1751827840409,-460.0,0.00017241,2]
[370007549,1751827840418,-1798.69,0.00017241,2]
[370007550,1751827840428,-460.0,0.00017241,2]
[370007551,1751827840439,-1481.8,0.00017241,2]
[370007552,1751827840449,-460.0,0.00017241,2]
[370007553,1751827840459,-1776.55,0.00017241,2]
[370007554,1751827840470,-460.0,0.00017241,2]
[370007555,1751827840480,-460.0,0.00017241,2]
[370007556,1751827840490,-1777.26,0.00017241,2]
[370007557,1751827840501,-460.0,0.00017241,2]
[370007558,1751827840512,-460.0,0.00017241,2]
[370007559,1751827840522,-460.0,0.00017241,2]
[370007560,1751827840533,-960.36,0.00017241,2]
[370007561,1751827840543,-246.68134019,0.00017241,2]
[370007562,1751827840554,-460.0,0.00017241,2]
[370007563,1751827840565,-460.0,0.00017241,2]
[370007564,1751827840576,-460.0,0.00017241,2]
[370007565,1751827840587,-460.0,0.00017241,2]
[370007566,1751827840598,-460.0,0.00017241,2]
[370007567,1751827840813,-482.66,0.00017241,2]
[370007568,1751827840833,-460.0,0.00017241,2]
[370007569,1751827840845,-1056.27,0.00017241,2]
[370007570,1751827840855,-460.0,0.00017241,2]
[370007571,1751827840864,-460.0,0.00017241,2]
[370007572,1751827840874,-950.61,0.00017241,2]
[370007573,1751827840884,-460.0,0.00017241,2]
[370007574,1751827840894,-460.0,0.00017241,2]
[370007575,1751827840903,-460.0,0.00017242,2]
[370007576,1751827840913,-460.0,0.00017242,2]
[370007577,1751827840923,-460.0,0.00017242,2]
[370007578,1751827840932,-460.0,0.00017242,2]
[370007579,1751827840942,-460.0,0.00017242,2]
[370007580,1751827840952,-460.0,0.00017242,2]
[370007581,1751827840962,-2864.36,0.00017242,2]
[370007582,1751827840972,-512.47,0.00017242,2]
[370007583,1751827840984,-917.95,0.00017242,2]
[370007584,1751827840994,-169.98,0.00017242,2]
[370007585,1751827841004,-867.11,0.00017242,2]
[370007586,1751827841013,-460.0,0.00017242,2]
[370007587,1751827841023,-1049.37,0.00017242,2]
[370007588,1751827841032,-818.97,0.00017242,2]
[370007589,1751827841041,-460.0,0.00017341,2]
[370007590,1751827841050,-460.0,0.00017341,2]
[370007591,1751827841060,-460.0,0.00017341,2]
[370007592,1751827841069,-460.0,0.00017341,2]
[370007593,1751827841078,-460.0,0.00017341,2]
[370007594,1751827841087,-460.0,0.00017341,2]
[370007595,1751827841097,-535.7,0.00017341,2]
[370007596,1751827841106,-460.0,0.00017341,2]
[370007597,1751827841115,-460.0,0.00017341,2]
[370007598,1751827841124,-460.0,0.00017341,2]
[370007599,1751827841133,-460.0,0.00017341,2]
[370007600,1751827841142,-1553.55,0.00017341,2]
[370007601,1751827841152,-460.0,0.00017341,2]
[370007602,1751827841161,-460.0,0.00017341,2]
[370007603,1751827841170,-460.0,0.00017341,2]
[370007604,1751827841180,-460.0,0.00017341,2]
[370007605,1751827841190,-1082.26,0.00017341,2]
[370007606,1751827841200,-460.0,0.00017341,2]
[370007607,1751827841209,-460.0,0.00017341,2]
[370007608,1751827841219,-2807.19,0.00017341,2]
[370007609,1751827841228,-460.0,0.00017341,2]
[370007610,1751827841239,-819.71,0.00017341,2]
[370007611,1751827841248,-460.0,0.00017348,2]
[370007612,1751827841258,-322.72841551,0.00017415,2]
[370007613,1751827841267,-191.29,0.00017513,2]
[370007614,1751827841276,-460.0,0.00017513,2]
[370007615,1751827841286,-1289.88,0.00017513,2]
[370007616,1751827841295,-460.0,0.00017513,2]
[370007617,1751827841305,-460.0,0.00017515,2]
[370007618,1751827841315,-460.0,0.00017515,2]
[370007619,1751827841324,-460.0,0.00017515,2]
[370007620,1751827841333,-275.32,0.00017515,2]
[370007621,1751827841342,-592.9,0.00017515,2]
[370007622,1751827841351,-460.0,0.00017515,2]
[370007623,1751827841361,-484.96,0.00017515,2]
[370007624,1751827841370,-460.0,0.00017515,2]
[370007625,1751827841379,-1798.69,0.00017515,2]
[370007626,1751827841388,-1481.8,0.00017515,2]
[370007627,1751827841397,-460.0,0.00017515,2]
[370007628,1751827841407,-1776.55,0.00017515,2]
[370007629,1751827841415,-460.0,0.00017515,2]
[370007630,1751827841425,-460.0,0.00017515,2]
[370007631,1751827841434,-1777.26,0.00017515,2]
[370007632,1751827841444,-460.0,0.00017515,2]
[370007633,1751827841454,-460.0,0.00017515,2]
[370007634,1751827841463,-960.36,0.00017515,2]
[370007635,1751827841472,-460.0,0.00017515,2]
[370007636,1751827841481,-460.0,0.00017515,2]
[370007637,1751827841492,-460.0,0.00017515,2]
[370007638,1751827841501,-460.0,0.00017515,2]
[370007639,1751827841510,-460.0,0.00017515,2]
[370007640,1751827841519,-482.66,0.00017515,2]
[370007641,1751827841529,-460.0,0.00017515,2]
[370007642,1751827841538,-1056.27,0.00017515,2]
[370007643,1751827841548,-460.0,0.00017515,2]
[370007644,1751827841557,-460.0,0.00017515,2]
[370007645,1751827841567,-950.61,0.00017515,2]
[370007646,1751827841577,-460.0,0.00017515,2]
[370007647,1751827841586,-460.0,0.00017515,2]
[370007648,1751827841596,-460.0,0.00017516,2]
[370007649,1751827841605,-460.0,0.00017516,2]
[370007650,1751827841614,-460.0,0.00017516,2]
[370007651,1751827841624,-460.0,0.00017516,2]
[370007652,1751827841633,-460.0,0.00017516,2]
[370007653,1751827841643,-460.0,0.00017516,2]
[370007654,1751827841652,-2864.36,0.00017516,2]
[370007655,1751827841661,-512.47,0.00017516,2]
[370007656,1751827841671,-917.95,0.00017516,2]
[370007657,1751827841681,-867.11,0.00017516,2]
[370007658,1751827841690,-460.0,0.00017516,2]
[370007659,1751827841700,-1049.37,0.00017516,2]
[370007660,1751827841709,-818.97,0.00017516,2]
[370007661,1751827841719,-325.66737866,0.00017615,2]
[370007662,1751827841728,-460.0,0.00017615,2]
[370007663,1751827841739,-460.0,0.00017615,2]
[370007664,1751827841748,-460.0,0.00017615,2]
[370007665,1751827841757,-460.0,0.00017615,2]
[370007666,1751827841767,-460.0,0.00017615,2]
[370007667,1751827841776,-535.7,0.00017615,2]
[370007668,1751827841785,-460.0,0.00017615,2]
[370007669,1751827841795,-460.0,0.00017615,2]
[370007670,1751827841805,-460.0,0.00017615,2]
[370007671,1751827841814,-460.0,0.00017615,2]
[370007672,1751827841823,-460.0,0.00017615,2]
[370007673,1751827841833,-1553.55,0.00017615,2]
[370007674,1751827841842,-460.0,0.00017615,2]
[370007675,1751827841851,-460.0,0.00017615,2]
[370007676,1751827841861,-460.0,0.00017615,2]
[370007677,1751827841871,-1082.26,0.00017615,2]
[370007678,1751827841881,-460.0,0.00017615,2]
[370007679,1751827841891,-460.0,0.00017615,2]
[370007680,1751827841901,-2807.19,0.00017615,2]
[370007681,1751827841911,-460.0,0.00017615,2]
[370007682,1751827841920,-819.71,0.00017615,2]
[370007683,1751827841930,-460.0,0.00017622,2]
[370007684,1751827841939,-500.0,0.000177,2]
[370007685,1751827841948,-500.18007084,0.000177,2]
[370007686,1751827841958,-166.47720613,0.000177,2]
[370007687,1751827841967,-500.0,0.000177,2]
[370007688,1751827841977,-500.0,0.000177,2]
[370007689,1751827841987,-500.0,0.000177,2]
[370007690,1751827841996,-500.00701948,0.000177,2]
[370007691,1751827842005,-500.0,0.000177,2]
[370007692,1751827842015,-500.0,0.000177,2]
[370007693,1751827842024,-500.0,0.000177,2]
[370007694,1751827842033,-500.0,0.000177,2]
[370007695,1751827842042,-327.953369,0.00017711,2]
[370007696,1751827842051,-25000.0,0.00017724,2]
[370007697,1751827842061,-223.92025034,0.00017724,2]
[370007698,1751827842070,-500.0,0.00017724,2]
[370007699,1751827842080,-151.0,0.00017724,2]
[370007700,1751827842089,-690.642,0.00017724,2]
[370007701,1751827842098,-151.0,0.00017724,2]
[370007702,1751827842108,-5000.0,0.00017724,2]
[370007703,1751827842117,-1200.0,0.00017724,2]
[370007704,1751827842127,-1200.0,0.00017724,2]
[370007705,1751827842136,-1200.0,0.00017724,2]
[370007706,1751827842147,-1200.0,0.00017724,2]
[370007707,1751827842157,-641.68015656,0.00017724,2]
[370007708,1751827842167,-207.4,0.00017724,2]
[370007709,1751827842176,-3000.0,0.00017724,2]
[370007710,1751827842187,-151.0,0.00017724,2]
[370007711,1751827842197,-3000.0,0.00017724,2]
[370007712,1751827842207,-1169.08482093,0.00017724,2]
[370007713,1751827842216,-151.0,0.00017724,2]
[370007714,1751827842226,-151.0,0.00017724,2]
[370007715,1751827842236,-151.0,0.00017724,2]
[370007716,1751827842245,-151.0,0.00017724,2]
[370007717,1751827842254,-151.0,0.00017724,2]
[370007718,1751827842264,-800.0,0.00017776,2]
[370007719,1751827842273,-716.195754,0.00017779,2]
[370007720,1751827842282,-900.47021866,0.00017783,2]
[370007721,1751827842292,-470.4,0.00017787,2]
[370007722,1751827842301,-1289.88,0.00017787,2]
[370007723,1751827842310,-460.0,0.00017787,2]
[370007724,1751827842319,-460.0,0.00017789,2]
[370007725,1751827842329,-460.0,0.00017789,2]
[370007726,1751827842339,-592.9,0.00017789,2]
[370007727,1751827842348,-460.0,0.00017789,2]
[370007728,1751827842359,-460.0,0.00017789,2]
[370007729,1751827842368,-1798.69,0.00017789,2]
[370007730,1751827842379,-1481.8,0.00017789,2]
[370007731,1751827842391,-460.0,0.00017789,2]
[370007732,1751827842401,-1776.55,0.00017789,2]
[370007733,1751827842411,-460.0,0.00017789,2]
[370007734,1751827842422,-460.0,0.00017789,2]
[370007735,1751827842432,-1777.26,0.00017789,2]
[370007736,1751827842441,-460.0,0.00017789,2]
[370007737,1751827842450,-460.0,0.00017789,2]
[370007738,1751827842460,-960.36,0.00017789,2]
[370007739,1751827842469,-460.0,0.00017789,2]
[370007740,1751827842478,-392.73960778,0.00017789,2]
[370007741,1751827842488,-460.0,0.00017789,2]
[370007742,1751827842497,-460.0,0.00017789,2]
[370007743,1751827842506,-460.0,0.00017789,2]
[370007744,1751827842515,-482.66,0.00017789,2]
[370007745,1751827842525,-150.16,0.00017789,2]
[370007746,1751827842534,-1056.27,0.00017789,2]
[370007747,1751827842543,-460.0,0.00017789,2]
[370007748,1751827842552,-460.0,0.00017789,2]
[370007749,1751827842561,-950.61,0.00017789,2]
[370007750,1751827842571,-460.0,0.00017789,2]
[370007751,1751827842581,-460.0,0.00017789,2]
[370007752,1751827842591,-6658.65209215,0.00017789,2]
[370007753,1751827842600,-460.0,0.0001779,2]
[370007754,1751827842610,-460.0,0.0001779,2]
[370007755,1751827842620,-460.0,0.0001779,2]
[370007756,1751827842629,-460.0,0.0001779,2]
[370007757,1751827842640,-460.0,0.0001779,2]
[370007758,1751827842650,-460.0,0.0001779,2]
[370007759,1751827842660,-2864.36,0.0001779,2]
[370007760,1751827842670,-512.47,0.0001779,2]
[370007761,1751827842680,-867.11,0.0001779,2]
[370007762,1751827842690,-460.0,0.0001779,2]
[370007763,1751827842700,-1049.37,0.0001779,2]
[370007764,1751827842709,-818.97,0.0001779,2]
[370007765,1751827842720,-742.6949969,0.00017834,2]
[370007766,1751827842730,-770.17471178,0.00017889,2]
[370007767,1751827842740,-460.0,0.00017889,2]
[370007768,1751827842750,-460.0,0.00017889,2]
[370007769,1751827842760,-460.0,0.00017889,2]
[370007770,1751827842770,-215.35172305,0.00017889,2]
[370007771,1751827842779,-460.0,0.00017889,2]
[370007772,1751827842789,-535.7,0.00017889,2]
[370007773,1751827842798,-297.58,0.00017889,2]
[370007774,1751827842807,-460.0,0.00017889,2]
[370007775,1751827842816,-460.0,0.00017889,2]
[370007776,1751827842825,-460.0,0.00017889,2]
[370007777,1751827842835,-460.0,0.00017889,2]
[370007778,1751827842845,-1553.55,0.00017889,2]
[370007779,1751827842854,-281.17,0.00017889,2]
[370007780,1751827842864,-460.0,0.00017889,2]
[370007781,1751827842874,-460.0,0.00017889,2]
[370007782,1751827842883,-1082.26,0.00017889,2]
[370007783,1751827842893,-430.62,0.00017889,2]
[370007784,1751827842902,-460.0,0.00017889,2]
[370007785,1751827842911,-2807.19,0.00017889,2]
[370007786,1751827842921,-819.71,0.00017889,2]
[370007787,1751827842929,-460.0,0.00017896,2]
[370007788,1751827842939,-671.51702304,0.00017944,2]
[370007789,1751827842948,-500.19441797,0.00017968,2]
[370007790,1751827842957,-500.0,0.00017968,2]
[370007791,1751827842966,-500.0,0.00017968,2]
[370007792,1751827842976,-172.74605565,0.00017968,2]
[370007793,1751827842986,-500.0,0.00017968,2]
[370007794,1751827842995,-1289.88,0.00018061,2]
[370007795,1751827843005,-460.0,0.00018063,2]
[370007796,1751827843014,-460.0,0.00018063,2]
[370007797,1751827843023,-592.9,0.00018063,2]
[370007798,1751827843032,-460.0,0.00018063,2]
[370007799,1751827843041,-460.0,0.00018063,2]
[370007800,1751827843051,-1798.69,0.00018063,2]
[370007801,1751827843060,-1481.8,0.00018063,2]
[370007802,1751827843070,-460.0,0.00018063,2]
[370007803,1751827843081,-1776.55,0.00018063,2]
[370007804,1751827843091,-460.0,0.00018063,2]
[370007806,1751827843101,-460.0,0.00018063,2]
[370007808,1751827843111,-1777.26,0.00018063,2]
[370007809,1751827843120,-460.0,0.00018063,2]
[370007810,1751827843130,-460.0,0.00018063,2]
[370007811,1751827843139,-960.36,0.00018063,2]
[370007812,1751827843149,-460.0,0.00018063,2]
[370007814,1751827843159,-460.0,0.00018063,2]
[370007815,1751827843168,-460.0,0.00018063,2]
[370007816,1751827843178,-460.0,0.00018063,2]
[370007817,1751827843187,-482.66,0.00018063,2]
[370007819,1751827843196,-1056.27,0.00018063,2]
[370007820,1751827843205,-460.0,0.00018063,2]
[370007821,1751827843214,-460.0,0.00018063,2]
[370007822,1751827843224,-950.61,0.00018063,2]
[370007823,1751827843233,-460.0,0.00018063,2]
[370007824,1751827843243,-460.0,0.00018063,2]
[370007825,1751827843252,-198.83,0.00018064,2]
[370007826,1751827843261,-460.0,0.00018064,2]
[370007827,1751827843271,-460.0,0.00018064,2]
[370007828,1751827843280,-450.26409279,0.00018064,2]
[370007829,1751827843290,-460.0,0.00018064,2]
[370007830,1751827843299,-2864.36,0.00018064,2]
[370007831,1751827843308,-512.47,0.00018064,2]
[370007832,1751827843318,-867.11,0.00018064,2]
[370007834,1751827843327,-460.0,0.00018064,2]
[370007835,1751827843337,-1049.37,0.00018064,2]
[370007836,1751827843347,-818.97,0.00018064,2]
[370007837,1751827843357,-460.0,0.00018163,2]
[370007838,1751827843367,-460.0,0.00018163,2]
[370007839,1751827843376,-460.0,0.00018163,2]
[370007840,1751827843387,-535.7,0.00018163,2]
[370007841,1751827843398,-460.0,0.00018163,2]
[370007842,1751827843407,-460.0,0.00018163,2]
[370007843,1751827843417,-460.0,0.00018163,2]
[370007844,1751827843426,-460.0,0.00018163,2]
[370007845,1751827843435,-1553.55,0.00018163,2]
[370007846,1751827843445,-460.0,0.00018163,2]
[370007847,1751827843459,-460.0,0.00018163,2]
[370007848,1751827843470,-1082.26,0.00018163,2]
[370007849,1751827843480,-460.0,0.00018163,2]
[370007850,1751827843490,-2807.19,0.00018163,2]
[370007851,1751827843500,-819.71,0.00018163,2]
[370007852,1751827843510,-460.0,0.0001817,2]
[370007853,1751827843520,-214.03875559,0.00018176,2]
[370007854,1751827843530,-160.0,0.00018176,2]
[370007855,1751827843540,-230.45878613,0.00018176,2]
[370007856,1751827843549,-160.0,0.00018176,2]
[370007857,1751827843558,-215.18120504,0.00018176,2]
[370007858,1751827843568,-848.15551661,0.00018176,2]
[370007859,1751827843577,-12582.33653824,0.00018176,2]
[370007860,1751827843586,-160.0,0.00018176,2]
[370007861,1751827843596,-160.0,0.00018176,2]
[370007862,1751827843606,-837.69501035,0.00018176,2]
[370007863,1751827843615,-160.0,0.00018176,2]
[370007864,1751827843625,-160.0,0.00018176,2]
[370007865,1751827843635,-160.0,0.00018177,2]
[370007866,1751827843645,-151.0,0.0001822,2]
[370007867,1751827843654,-151.0,0.0001822,2]
[370007868,1751827843664,-513.93429682,0.00018248,2]
[370007870,1751827843673,-500.0,0.00018248,2]
[370007871,1751827843683,-1000.0,0.00018248,2]
[370007872,1751827843693,-500.0,0.00018248,2]
[370007873,1751827843703,-500.0,0.00018248,2]
[370007874,1751827843712,-25000.0,0.00018272,2]
[370007875,1751827843722,-5000.0,0.00018272,2]
[370007876,1751827843731,-151.0,0.00018272,2]
[370007877,1751827843741,-172.186339,0.00018272,2]
[370007878,1751827843750,-172.186339,0.00018272,2]
[370007879,1751827843760,-151.0,0.00018272,2]
[370007880,1751827843769,-151.0,0.00018272,2]
[370007881,1751827843779,-151.0,0.00018272,2]
[370007882,1751827843788,-151.0,0.00018272,2]
[370007883,1751827843798,-151.0,0.00018272,2]
[370007884,1751827843807,-151.0,0.00018272,2]
[370007885,1751827843816,-151.0,0.00018272,2]
[370007886,1751827843826,-151.0,0.00018272,2]
[370007887,1751827843835,-174.862177,0.00018272,2]
[370007888,1751827843845,-174.862177,0.00018272,2]
[370007889,1751827843854,-151.0,0.00018272,2]
[370007890,1751827843863,-151.0,0.00018272,2]
[370007891,1751827843873,-151.0,0.00018272,2]
[370007892,1751827843882,-499.83205,0.00018272,2]
[370007893,1751827843891,-499.83205,0.00018272,2]
[370007894,1751827843900,-151.0,0.00018272,2]
[370007895,1751827843910,-151.0,0.00018273,2]
[370007896,1751827843919,-151.0,0.00018273,2]
[370007897,1751827844062,-151.0,0.00018273,2]
[370007898,1751827844074,-1000.0,0.00018273,2]
[370007899,1751827844084,-1000.0,0.00018273,2]
[370007900,1751827844093,-1000.0,0.00018273,2]
[370007901,1751827844103,-1000.0,0.00018273,2]
[370007902,1751827844112,-1000.0,0.00018273,2]
[370007903,1751827844121,-1000.0,0.00018273,2]
[370007904,1751827844130,-1000.0,0.00018273,2]
[370007905,1751827844140,-1000.0,0.00018273,2]
[370007906,1751827844152,-1000.0,0.00018273,2]
[370007907,1751827844161,-1000.0,0.00018273,2]
[370007908,1751827844170,-1000.0,0.00018273,2]
[370007909,1751827844180,-1141.67153215,0.00018273,2]
[370007910,1751827844190,-151.0,0.000183,2]
[370007911,1751827844200,-151.0,0.000183,2]
[370007912,1751827844210,-151.0,0.000183,2]
[370007913,1751827844219,-10690.5752717,0.000183,2]
[370007914,1751827844230,-10690.57527169,0.000183,2]
[370007915,1751827844241,-10690.57527169,0.000183,2]
[370007916,1751827844250,-10690.57527169,0.000183,2]
[370007917,1751827844260,-10690.57527169,0.000183,2]
[370007918,1751827844269,-168.0,0.00018302,2]
[370007919,1751827844278,-340.98,0.00018329,3]
[370007920,1751827844288,-1289.88,0.00018335,2]
[370007921,1751827844297,-2139.391749,0.00018336,2]
[370007922,1751827844307,-460.0,0.00018337,2]
[370007923,1751827844317,-460.0,0.00018337,2]
[370007924,1751827844326,-592.9,0.00018337,2]
[370007925,1751827844335,-460.0,0.00018337,2]
[370007926,1751827844345,-1798.69,0.00018337,2]
[370007927,1751827844354,-460.0,0.00018337,2]
[370007928,1751827844363,-1481.8,0.00018337,2]
[370007929,1751827844373,-568.27,0.00018337,2]
[370007930,1751827844383,-1776.55,0.00018337,2]
[370007931,1751827844393,-460.0,0.00018337,2]
[370007932,1751827844403,-460.0,0.00018337,2]
[370007933,1751827844413,-1777.26,0.00018337,2]
[370007934,1751827844423,-460.0,0.00018337,2]
[370007935,1751827844433,-460.0,0.00018337,2]
[370007936,1751827844443,-960.36,0.00018337,2]
[370007937,1751827844453,-460.0,0.00018337,2]
[370007938,1751827844464,-289.77,0.00018337,2]
[370007939,1751827844474,-460.0,0.00018337,2]
[370007940,1751827844484,-460.0,0.00018337,2]
[370007941,1751827844493,-482.66,0.00018337,2]
[370007942,1751827844503,-1056.27,0.00018337,2]
[370007943,1751827844513,-460.0,0.00018337,2]
[370007944,1751827844523,-460.0,0.00018337,2]
[370007945,1751827844533,-950.61,0.00018337,2]
[370007946,1751827844543,-460.0,0.00018337,2]
[370007947,1751827844553,-460.0,0.00018337,2]
[370007948,1751827844562,-151.0,0.00018338,2]
[370007949,1751827844572,-201.884313,0.00018338,2]
[370007950,1751827844581,-460.0,0.00018338,2]
[370007951,1751827844591,-460.0,0.00018338,2]
[370007952,1751827844601,-460.0,0.00018338,2]
[370007953,1751827844612,-2864.36,0.00018338,2]
[370007954,1751827844622,-512.47,0.00018338,2]
[370007955,1751827844632,-867.11,0.00018338,2]
[370007956,1751827844642,-460.0,0.00018338,2]
[370007957,1751827844651,-1049.37,0.00018338,2]
[370007958,1751827844661,-818.97,0.00018338,2]
[370007959,1751827844671,-241.996529,0.0001836,2]
[370007960,1751827844681,-652.617,0.00018382,2]
[370007961,1751827844691,-151.0,0.00018382,2]